[Event "Titled Tuesday Blitz November 07 Early 2023"]
[White "Melkumyan, Hrant"]
[Black "Timerkhanov, Alexander"]
[WhiteFideId "13302485"]
[BlackFideId "24177938"]
[WhiteElo "2894"]
[BlackElo "2737"]
[Result "1/2-1/2"]
[Round "5"]
[TimeControl "180+1"]
[Date "2023.11.07"]
[WhiteClock "0:00:09"]
[BlackClock "0:00:07"]
[Board "18"]

1. Nf3 {[%clk 0:02:56]}  d5 {[%clk 0:02:59]} 2. e3 {[%clk 0:02:53]}  Nf6 {[%clk 0:02:59]} 3. c4 {[%clk 0:02:51]}  c6 {[%clk 0:02:59]} 4. Nc3 {[%clk 0:02:51]}  g6 {[%clk 0:02:59]} 5. cxd5 {[%clk 0:02:46]}  cxd5 {[%clk 0:02:58]} 6. Bb5+ {[%clk 0:02:46]}  Bd7 {[%clk 0:02:57]} 7. Qb3 {[%clk 0:02:46]}  e6 {[%clk 0:02:34]} 8. Ne5 {[%clk 0:02:38]}  a6 {[%clk 0:02:31]} 9. Be2 {[%clk 0:02:22]}  Nc6 {[%clk 0:02:19]} 10. Nxd7 {[%clk 0:02:16]}  Qxd7 {[%clk 0:02:19]} 11. d4 {[%clk 0:02:15]}  Na5 {[%clk 0:02:01]} 12. Qd1 {[%clk 0:02:14]}  b5 {[%clk 0:01:57]} 13. Bd2 {[%clk 0:01:59]}  Nc4 {[%clk 0:01:54]} 14. Qb3 {[%clk 0:01:38]}  Bd6 {[%clk 0:01:48]} 15. a4 {[%clk 0:01:28]}  b4 {[%clk 0:01:45]} 16. Nb1 {[%clk 0:01:24]}  Rc8 {[%clk 0:01:34]} 17. O-O {[%clk 0:01:13]}  O-O {[%clk 0:01:33]} 18. Rd1 {[%clk 0:01:07]}  Rc7 {[%clk 0:01:21]} 19. a5 {[%clk 0:01:05]}  Rb8 {[%clk 0:01:19]} 20. Be1 {[%clk 0:01:03]}  Rb5 {[%clk 0:01:09]} 21. Nd2 {[%clk 0:01:02]}  Rxa5 {[%clk 0:01:02]} 22. Nxc4 {[%clk 0:00:44]}  dxc4 {[%clk 0:00:58]} 23. Bxc4 {[%clk 0:00:43]}  Rxa1 {[%clk 0:00:43]} 24. Rxa1 {[%clk 0:00:44]}  Qc6 {[%clk 0:00:42]} 25. Bf1 {[%clk 0:00:41]}  Qc2 {[%clk 0:00:41]} 26. Qxc2 {[%clk 0:00:32]}  Rxc2 {[%clk 0:00:42]} 27. Rxa6 {[%clk 0:00:33]}  Be7 {[%clk 0:00:40]} 28. Ra7 {[%clk 0:00:32]}  Bd6 {[%clk 0:00:39]} 29. Ra6 {[%clk 0:00:32]}  Be7 {[%clk 0:00:39]} 30. f3 {[%clk 0:00:18]}  Nd5 {[%clk 0:00:37]} 31. Bf2 {[%clk 0:00:15]}  Rxb2 {[%clk 0:00:37]} 32. g3 {[%clk 0:00:13]}  Nc3 {[%clk 0:00:33]} 33. Ra7 {[%clk 0:00:10]}  Bd6 {[%clk 0:00:31]} 34. Rb7 {[%clk 0:00:10]}  Nd1 {[%clk 0:00:18]} 35. Be1 {[%clk 0:00:11]}  Nxe3 {[%clk 0:00:17]} 36. Bd3 {[%clk 0:00:11]}  b3 {[%clk 0:00:15]} 37. Bf2 {[%clk 0:00:09]}  Nd1 {[%clk 0:00:15]} 38. Be1 {[%clk 0:00:09]}  Ne3 {[%clk 0:00:08]} 39. Rb6 {[%clk 0:00:09]}  Be7 {[%clk 0:00:07]} 40. Rb7 {[%clk 0:00:09]}  Bd6 {[%clk 0:00:07]} 1/2-1/2


[Site "https://www.chess.com"]

[Event "Titled Tuesday Blitz November 07 Early 2023"]
[White "Le, Tuan Minh"]
[Black "Darini, Pouria"]
[WhiteFideId "12401153"]
[BlackFideId "12502200"]
[WhiteElo "3072"]
[BlackElo "2731"]
[Result "1-0"]
[Round "5"]
[TimeControl "180+1"]
[Date "2023.11.07"]
[WhiteClock "0:00:55"]
[BlackClock "0:00:23"]
[Board "20"]

1. d4 {[%clk 0:02:46]}  Nf6 {[%clk 0:02:59]} 2. Nf3 {[%clk 0:02:46]}  g6 {[%clk 0:03:00]} 3. c4 {[%clk 0:02:45]}  Bg7 {[%clk 0:03:00]} 4. g3 {[%clk 0:02:46]}  O-O {[%clk 0:03:00]} 5. Bg2 {[%clk 0:02:46]}  d6 {[%clk 0:03:00]} 6. O-O {[%clk 0:02:46]}  Nc6 {[%clk 0:03:00]} 7. d5 {[%clk 0:02:45]}  Na5 {[%clk 0:03:00]} 8. Na3 {[%clk 0:02:46]}  c5 {[%clk 0:02:59]} 9. Re1 {[%clk 0:02:45]}  a6 {[%clk 0:02:56]} 10. e4 {[%clk 0:02:37]}  Bg4 {[%clk 0:02:56]} 11. Rb1 {[%clk 0:02:30]}  Rb8 {[%clk 0:02:54]} 12. b3 {[%clk 0:02:15]}  Nd7 {[%clk 0:02:51]} 13. h3 {[%clk 0:02:13]}  Bxf3 {[%clk 0:02:51]} 14. Bxf3 {[%clk 0:02:08]}  b5 {[%clk 0:02:51]} 15. Bd2 {[%clk 0:02:03]}  Qc7 {[%clk 0:02:14]} 16. Be2 {[%clk 0:01:55]}  bxc4 {[%clk 0:02:01]} 17. bxc4 {[%clk 0:01:50]}  Rxb1 {[%clk 0:01:56]} 18. Nxb1 {[%clk 0:01:50]}  Nb7 {[%clk 0:01:49]} 19. Kg2 {[%clk 0:01:26]}  Rb8 {[%clk 0:01:46]} 20. Qc2 {[%clk 0:01:23]}  Nd8 {[%clk 0:01:31]} 21. Nc3 {[%clk 0:01:23]}  Qa5 {[%clk 0:01:23]} 22. Rb1 {[%clk 0:01:14]}  Rxb1 {[%clk 0:01:21]} 23. Nxb1 {[%clk 0:01:15]}  Qb6 {[%clk 0:01:17]} 24. Qa4 {[%clk 0:01:10]}  Nf6 {[%clk 0:01:03]} 25. Bd3 {[%clk 0:01:07]}  Nb7 {[%clk 0:00:58]} 26. Qc6 {[%clk 0:00:57]}  Qa7 {[%clk 0:00:35]} 27. Qc8+ {[%clk 0:00:56]}  Bf8 {[%clk 0:00:23]} 28. Bh6 {[%clk 0:00:55]} 1-0


[Site "https://www.chess.com"]

[Event "Titled Tuesday Blitz November 07 Early 2023"]
[White "Akhmedinov, Satbek"]
[Black "Tsydypov, Zhamsaran"]
[WhiteFideId "13714287"]
[BlackFideId "4108566"]
[WhiteElo "2710"]
[BlackElo "3014"]
[Result "0-1"]
[Round "5"]
[TimeControl "180+1"]
[Date "2023.11.07"]
[WhiteClock "0:00:09"]
[BlackClock "0:00:22"]
[Board "21"]

1. e4 {[%clk 0:03:00]}  e5 {[%clk 0:02:57]} 2. Nf3 {[%clk 0:03:01]}  Nc6 {[%clk 0:02:57]} 3. Bc4 {[%clk 0:03:02]}  Bc5 {[%clk 0:02:57]} 4. c3 {[%clk 0:03:02]}  Nf6 {[%clk 0:02:57]} 5. d3 {[%clk 0:03:03]}  O-O {[%clk 0:02:56]} 6. O-O {[%clk 0:03:03]}  d6 {[%clk 0:02:56]} 7. Re1 {[%clk 0:03:03]}  a5 {[%clk 0:02:57]} 8. h3 {[%clk 0:02:53]}  Bb6 {[%clk 0:02:54]} 9. d4 {[%clk 0:02:42]}  h6 {[%clk 0:02:52]} 10. Na3 {[%clk 0:02:27]}  Re8 {[%clk 0:02:43]} 11. dxe5 {[%clk 0:02:11]}  Nxe5 {[%clk 0:02:42]} 12. Nxe5 {[%clk 0:02:11]}  Rxe5 {[%clk 0:02:41]} 13. Bd3 {[%clk 0:02:05]}  Re8 {[%clk 0:02:28]} 14. Bf4 {[%clk 0:02:02]}  Be6 {[%clk 0:02:21]} 15. Qf3 {[%clk 0:02:00]}  Nd7 {[%clk 0:02:19]} 16. Nc4 {[%clk 0:01:55]}  Bc5 {[%clk 0:02:20]} 17. Rad1 {[%clk 0:01:50]}  b5 {[%clk 0:02:18]} 18. Ne3 {[%clk 0:01:50]}  c6 {[%clk 0:02:11]} 19. a3 {[%clk 0:01:41]}  Bb3 {[%clk 0:02:08]} 20. Bc2 {[%clk 0:01:36]}  Bxe3 {[%clk 0:01:51]} 21. Bxb3 {[%clk 0:01:35]}  Bxf4 {[%clk 0:01:52]} 22. Qxf4 {[%clk 0:01:35]}  Ne5 {[%clk 0:01:52]} 23. Qd2 {[%clk 0:01:24]}  a4 {[%clk 0:01:42]} 24. Ba2 {[%clk 0:01:23]}  Ra7 {[%clk 0:01:40]} 25. f4 {[%clk 0:01:15]}  Ng6 {[%clk 0:01:39]} 26. Qxd6 {[%clk 0:00:59]}  Qxd6 {[%clk 0:01:39]} 27. Rxd6 {[%clk 0:00:59]}  Nxf4 {[%clk 0:01:40]} 28. Rxc6 {[%clk 0:00:52]}  Rd7 {[%clk 0:01:39]} 29. Rf1 {[%clk 0:00:47]}  g5 {[%clk 0:01:33]} 30. g3 {[%clk 0:00:27]}  Ne2+ {[%clk 0:01:24]} 31. Kg2 {[%clk 0:00:20]}  Rxe4 {[%clk 0:01:23]} 32. Rxh6 {[%clk 0:00:17]}  Kg7 {[%clk 0:01:18]} 33. Rb6 {[%clk 0:00:13]}  Re5 {[%clk 0:01:17]} 34. Rf2 {[%clk 0:00:13]}  f5 {[%clk 0:01:16]} 35. Bb1 {[%clk 0:00:13]}  f4 {[%clk 0:01:14]} 36. g4 {[%clk 0:00:11]}  Rd1 {[%clk 0:01:11]} 37. Bf5 {[%clk 0:00:10]}  Re3 {[%clk 0:01:05]} 38. Rg6+ {[%clk 0:00:09]}  Kf8 {[%clk 0:01:06]} 39. Rxg5 {[%clk 0:00:10]}  Rg3+ {[%clk 0:00:47]} 40. Kh2 {[%clk 0:00:10]}  Re3 {[%clk 0:00:37]} 41. Bc8 {[%clk 0:00:10]}  Ke7 {[%clk 0:00:34]} 42. Ba6 {[%clk 0:00:10]}  Ng1 {[%clk 0:00:33]} 43. Bxb5 {[%clk 0:00:10]}  Rxh3+ {[%clk 0:00:33]} 44. Kg2 {[%clk 0:00:09]}  f3+ {[%clk 0:00:26]} 45. Rxf3 {[%clk 0:00:10]}  Rxf3 {[%clk 0:00:25]} 46. Be2 {[%clk 0:00:09]}  Rd2 {[%clk 0:00:23]} 47. Re5+ {[%clk 0:00:10]}  Kf6 {[%clk 0:00:21]} 48. Kxg1 {[%clk 0:00:10]}  Rg3+ {[%clk 0:00:22]} 49. Kf2 {[%clk 0:00:09]}  Kxe5 {[%clk 0:00:22]} 0-1


[Site "https://www.chess.com"]

[Event "Titled Tuesday Blitz November 07 Early 2023"]
[White "NovozhilovSemen"]
[Black "Kovalev, Vladislav"]
[BlackFideId "13504398"]
[WhiteElo "2701"]
[BlackElo "2921"]
[Result "0-1"]
[Round "5"]
[TimeControl "180+1"]
[Date "2023.11.07"]
[WhiteClock "0:00:01"]
[BlackClock "0:00:29"]
[Board "24"]

1. d4 {[%clk 0:03:00]}  Nf6 {[%clk 0:02:57]} 2. Nf3 {[%clk 0:03:00]}  e6 {[%clk 0:02:57]} 3. e3 {[%clk 0:03:00]}  d5 {[%clk 0:02:55]} 4. Bd3 {[%clk 0:03:00]}  c5 {[%clk 0:02:56]} 5. b3 {[%clk 0:03:00]}  Nc6 {[%clk 0:02:56]} 6. O-O {[%clk 0:03:00]}  Be7 {[%clk 0:02:56]} 7. c4 {[%clk 0:03:00]}  O-O {[%clk 0:02:55]} 8. Nc3 {[%clk 0:03:00]}  b6 {[%clk 0:02:53]} 9. cxd5 {[%clk 0:02:59]}  Nxd5 {[%clk 0:02:51]} 10. Nxd5 {[%clk 0:02:56]}  Qxd5 {[%clk 0:02:52]} 11. Bb2 {[%clk 0:02:56]}  Bb7 {[%clk 0:02:50]} 12. Bc4 {[%clk 0:02:47]}  Qh5 {[%clk 0:02:47]} 13. d5 {[%clk 0:02:42]}  Rad8 {[%clk 0:02:41]} 14. Ne1 {[%clk 0:02:06]}  Qxd1 {[%clk 0:02:32]} 15. Rxd1 {[%clk 0:02:05]}  Nb4 {[%clk 0:02:32]} 16. a3 {[%clk 0:01:39]}  Nxd5 {[%clk 0:02:15]} 17. Nd3 {[%clk 0:01:36]}  Bf6 {[%clk 0:01:47]} 18. Ne5 {[%clk 0:01:33]}  Nc7 {[%clk 0:01:31]} 19. f3 {[%clk 0:00:52]}  Rxd1 {[%clk 0:01:23]} 20. Rxd1 {[%clk 0:00:52]}  Rd8 {[%clk 0:01:24]} 21. Rxd8+ {[%clk 0:00:45]}  Bxd8 {[%clk 0:01:25]} 22. e4 {[%clk 0:00:39]}  f6 {[%clk 0:01:24]} 23. Nd3 {[%clk 0:00:32]}  Kf7 {[%clk 0:01:14]} 24. b4 {[%clk 0:00:29]}  cxb4 {[%clk 0:01:08]} 25. axb4 {[%clk 0:00:30]}  Ba6 {[%clk 0:01:04]} 26. Bxa6 {[%clk 0:00:25]}  Nxa6 {[%clk 0:01:05]} 27. Kf2 {[%clk 0:00:26]}  Be7 {[%clk 0:01:02]} 28. Bc3 {[%clk 0:00:25]}  e5 {[%clk 0:01:01]} 29. Ke3 {[%clk 0:00:22]}  Ke6 {[%clk 0:00:59]} 30. f4 {[%clk 0:00:22]}  Bd6 {[%clk 0:00:57]} 31. fxe5 {[%clk 0:00:14]}  fxe5 {[%clk 0:00:58]} 32. g4 {[%clk 0:00:12]}  g6 {[%clk 0:00:56]} 33. h4 {[%clk 0:00:11]}  Nb8 {[%clk 0:00:53]} 34. g5 {[%clk 0:00:09]}  a6 {[%clk 0:00:49]} 35. Nb2 {[%clk 0:00:04]}  Nc6 {[%clk 0:00:46]} 36. Nc4 {[%clk 0:00:04]}  Bc7 {[%clk 0:00:25]} 37. Kd3 {[%clk 0:00:04]}  b5 {[%clk 0:00:25]} 38. Ne3 {[%clk 0:00:04]}  Ne7 {[%clk 0:00:26]} 39. Ng4 {[%clk 0:00:04]}  Bd6 {[%clk 0:00:26]} 40. Nf6 {[%clk 0:00:05]}  h5 {[%clk 0:00:26]} 41. Nh7 {[%clk 0:00:04]}  Ng8 {[%clk 0:00:25]} 42. Ke3 {[%clk 0:00:03]}  Kf7 {[%clk 0:00:25]} 43. Kd3 {[%clk 0:00:02]}  Kg7 {[%clk 0:00:26]} 44. Nf6 {[%clk 0:00:03]}  Nxf6 {[%clk 0:00:26]} 45. gxf6+ {[%clk 0:00:04]}  Kxf6 {[%clk 0:00:27]} 46. Bd2 {[%clk 0:00:05]}  Ke6 {[%clk 0:00:27]} 47. Kc3 {[%clk 0:00:04]}  Be7 {[%clk 0:00:28]} 48. Be1 {[%clk 0:00:05]}  g5 {[%clk 0:00:28]} 49. hxg5 {[%clk 0:00:03]}  Bxg5 {[%clk 0:00:29]} 50. Kd3 {[%clk 0:00:04]}  h4 {[%clk 0:00:30]} 51. Ke2 {[%clk 0:00:03]}  h3 {[%clk 0:00:29]} 52. Kf2 {[%clk 0:00:01]}  Bh4+ {[%clk 0:00:29]} 0-1


[Site "https://www.chess.com"]

[Event "Titled Tuesday Blitz November 07 Early 2023"]
[White "Aradhya, Garg"]
[Black "AlmasRakhmatullaev"]
[WhiteFideId "25006746"]
[WhiteElo "2696"]
[BlackElo "2891"]
[Result "1/2-1/2"]
[Round "5"]
[TimeControl "180+1"]
[Date "2023.11.07"]
[WhiteClock "0:01:17"]
[BlackClock "0:00:44"]
[Board "26"]

1. d4 {[%clk 0:03:00]}  d5 {[%clk 0:03:00]} 2. c4 {[%clk 0:03:01]}  e6 {[%clk 0:03:00]} 3. Nc3 {[%clk 0:03:01]}  a6 {[%clk 0:03:00]} 4. cxd5 {[%clk 0:02:59]}  exd5 {[%clk 0:03:01]} 5. Nf3 {[%clk 0:02:59]}  c6 {[%clk 0:03:01]} 6. Bf4 {[%clk 0:02:58]}  Bd6 {[%clk 0:03:00]} 7. Be5 {[%clk 0:02:56]}  Nf6 {[%clk 0:02:58]} 8. e3 {[%clk 0:02:56]}  O-O {[%clk 0:02:55]} 9. Bd3 {[%clk 0:02:56]}  Re8 {[%clk 0:02:55]} 10. O-O {[%clk 0:02:56]}  Bg4 {[%clk 0:02:53]} 11. Bxd6 {[%clk 0:02:53]}  Qxd6 {[%clk 0:02:54]} 12. h3 {[%clk 0:02:54]}  Bh5 {[%clk 0:02:54]} 13. Ne2 {[%clk 0:02:54]}  Bxf3 {[%clk 0:02:52]} 14. gxf3 {[%clk 0:02:53]}  Nbd7 {[%clk 0:02:48]} 15. Ng3 {[%clk 0:02:52]}  g6 {[%clk 0:02:45]} 16. Kg2 {[%clk 0:02:52]}  c5 {[%clk 0:02:44]} 17. dxc5 {[%clk 0:02:52]}  Nxc5 {[%clk 0:02:45]} 18. Bc2 {[%clk 0:02:49]}  Rad8 {[%clk 0:02:44]} 19. Qd4 {[%clk 0:02:45]}  Kg7 {[%clk 0:02:44]} 20. Rad1 {[%clk 0:02:31]}  Ne6 {[%clk 0:02:43]} 21. Qh4 {[%clk 0:02:32]}  Qe5 {[%clk 0:02:33]} 22. Rd2 {[%clk 0:02:24]}  d4 {[%clk 0:02:25]} 23. Re1 {[%clk 0:01:59]}  h5 {[%clk 0:01:35]} 24. f4 {[%clk 0:01:41]}  Nxf4+ {[%clk 0:01:25]} 25. exf4 {[%clk 0:01:42]}  Qxe1 {[%clk 0:01:25]} 26. Nf5+ {[%clk 0:01:26]}  gxf5 {[%clk 0:01:16]} 27. Qg5+ {[%clk 0:01:26]}  Kf8 {[%clk 0:01:17]} 28. Qxf6 {[%clk 0:01:15]}  Qxd2 {[%clk 0:01:02]} 29. Bb3 {[%clk 0:01:15]}  Rd7 {[%clk 0:00:57]} 30. Qh8+ {[%clk 0:01:15]}  Ke7 {[%clk 0:00:57]} 31. Qe5+ {[%clk 0:01:16]}  Kd8 {[%clk 0:00:57]} 32. Qb8+ {[%clk 0:01:16]}  Ke7 {[%clk 0:00:43]} 33. Qe5+ {[%clk 0:01:17]}  Kd8 {[%clk 0:00:43]} 34. Qb8+ {[%clk 0:01:17]}  Ke7 {[%clk 0:00:44]} 35. Qe5+ {[%clk 0:01:17]} 1/2-1/2


[Site "https://www.chess.com"]

[Event "Titled Tuesday Blitz November 07 Early 2023"]
[White "Lukovic, Vladimir"]
[Black "Subelj, Jan"]
[WhiteFideId "942952"]
[BlackFideId "14618583"]
[WhiteElo "2693"]
[BlackElo "2870"]
[Result "1/2-1/2"]
[Round "5"]
[TimeControl "180+1"]
[Date "2023.11.07"]
[WhiteClock "0:00:03"]
[BlackClock "0:00:07"]
[Board "29"]

1. e4 {[%clk 0:03:00]}  e6 {[%clk 0:03:00]} 2. d4 {[%clk 0:02:56]}  Nc6 {[%clk 0:03:01]} 3. Be3 {[%clk 0:02:56]}  d5 {[%clk 0:02:58]} 4. Nd2 {[%clk 0:02:55]}  Bd6 {[%clk 0:02:51]} 5. c3 {[%clk 0:02:53]}  Bd7 {[%clk 0:02:42]} 6. Bd3 {[%clk 0:02:53]}  dxe4 {[%clk 0:02:28]} 7. Nxe4 {[%clk 0:02:53]}  Nf6 {[%clk 0:02:28]} 8. Nf3 {[%clk 0:02:48]}  Nxe4 {[%clk 0:02:27]} 9. Bxe4 {[%clk 0:02:48]}  h6 {[%clk 0:02:26]} 10. O-O {[%clk 0:02:46]}  O-O {[%clk 0:02:26]} 11. c4 {[%clk 0:02:42]}  Rb8 {[%clk 0:02:23]} 12. Rc1 {[%clk 0:02:37]}  b5 {[%clk 0:02:10]} 13. c5 {[%clk 0:02:30]}  Be7 {[%clk 0:02:10]} 14. Ne5 {[%clk 0:02:23]}  Nb4 {[%clk 0:02:05]} 15. Bxh6 {[%clk 0:01:56]}  gxh6 {[%clk 0:01:59]} 16. Qg4+ {[%clk 0:01:56]}  Bg5 {[%clk 0:01:57]} 17. Qg3 {[%clk 0:01:26]}  Kh8 {[%clk 0:01:47]} 18. f4 {[%clk 0:01:25]}  Bh4 {[%clk 0:01:45]} 19. Qh3 {[%clk 0:01:24]}  Be8 {[%clk 0:01:44]} 20. g3 {[%clk 0:01:23]}  Rg8 {[%clk 0:01:43]} 21. Rcd1 {[%clk 0:01:19]}  f5 {[%clk 0:01:39]} 22. Bf3 {[%clk 0:01:15]}  Kh7 {[%clk 0:01:31]} 23. d5 {[%clk 0:00:58]}  Be7 {[%clk 0:01:21]} 24. dxe6 {[%clk 0:00:52]}  Bxc5+ {[%clk 0:01:21]} 25. Kh1 {[%clk 0:00:52]}  Qf6 {[%clk 0:01:21]} 26. Nd7 {[%clk 0:00:46]}  Bxd7 {[%clk 0:01:13]} 27. Rxd7+ {[%clk 0:00:46]}  Rg7 {[%clk 0:01:11]} 28. Rc1 {[%clk 0:00:22]}  Bd6 {[%clk 0:01:10]} 29. Re1 {[%clk 0:00:19]}  Nd3 {[%clk 0:01:09]} 30. Re2 {[%clk 0:00:18]}  Re7 {[%clk 0:01:05]} 31. Rxe7+ {[%clk 0:00:15]}  Bxe7 {[%clk 0:01:06]} 32. Bc6 {[%clk 0:00:14]}  Rf8 {[%clk 0:01:02]} 33. Qg2 {[%clk 0:00:12]}  Qd4 {[%clk 0:01:01]} 34. Bxb5 {[%clk 0:00:12]}  Bc5 {[%clk 0:00:53]} 35. Qf1 {[%clk 0:00:11]}  Qd5+ {[%clk 0:00:47]} 36. Qg2 {[%clk 0:00:10]}  Qxa2 {[%clk 0:00:33]} 37. h3 {[%clk 0:00:06]}  Qb3 {[%clk 0:00:21]} 38. e7 {[%clk 0:00:04]}  Qxb5 {[%clk 0:00:16]} 39. exf8=Q {[%clk 0:00:03]}  Bxf8 {[%clk 0:00:17]} 40. Qf3 {[%clk 0:00:02]}  Bg7 {[%clk 0:00:15]} 41. Kh2 {[%clk 0:00:02]}  Nxb2 {[%clk 0:00:15]} 42. g4 {[%clk 0:00:02]}  Qd3 {[%clk 0:00:14]} 43. Qg2 {[%clk 0:00:01]}  Qd4 {[%clk 0:00:13]} 44. Re7 {[%clk 0:00:01]}  Qxf4+ {[%clk 0:00:13]} 45. Kh1 {[%clk 0:00:02]}  Qc1+ {[%clk 0:00:13]} 46. Kh2 {[%clk 0:00:02]}  Qc3 {[%clk 0:00:13]} 47. gxf5 {[%clk 0:00:02]}  Qf6 {[%clk 0:00:13]} 48. Rxc7 {[%clk 0:00:01]}  Qe5+ {[%clk 0:00:12]} 49. Qg3 {[%clk 0:00:02]}  Qe2+ {[%clk 0:00:07]} 50. Kh1 {[%clk 0:00:01]}  Qe4+ {[%clk 0:00:06]} 51. Kh2 {[%clk 0:00:02]}  Qe2+ {[%clk 0:00:07]} 52. Kh1 {[%clk 0:00:02]}  Qd1+ {[%clk 0:00:07]} 53. Kh2 {[%clk 0:00:02]}  Qd2+ {[%clk 0:00:07]} 54. Kh1 {[%clk 0:00:03]}  Qd1+ {[%clk 0:00:07]} 55. Kh2 {[%clk 0:00:03]}  Qe2+ {[%clk 0:00:07]} 1/2-1/2


[Site "https://www.chess.com"]

[Event "Titled Tuesday Blitz November 07 Early 2023"]
[White "carokannlover213"]
[Black "Klukin, Kirill"]
[BlackFideId "24199273"]
[WhiteElo "2690"]
[BlackElo "2851"]
[Result "1/2-1/2"]
[Round "5"]
[TimeControl "180+1"]
[Date "2023.11.07"]
[WhiteClock "0:00:05"]
[BlackClock "0:00:06"]
[Board "33"]

1. e4 {[%clk 0:03:00]}  c5 {[%clk 0:03:00]} 2. Nf3 {[%clk 0:03:00]}  Nc6 {[%clk 0:03:00]} 3. Nc3 {[%clk 0:02:59]}  g6 {[%clk 0:02:59]} 4. d4 {[%clk 0:02:59]}  cxd4 {[%clk 0:03:00]} 5. Nxd4 {[%clk 0:03:00]}  Bg7 {[%clk 0:03:00]} 6. Be3 {[%clk 0:03:00]}  Nf6 {[%clk 0:03:01]} 7. Bc4 {[%clk 0:03:00]}  O-O {[%clk 0:03:01]} 8. Bb3 {[%clk 0:03:01]}  Re8 {[%clk 0:03:02]} 9. f3 {[%clk 0:02:59]}  e6 {[%clk 0:03:01]} 10. O-O {[%clk 0:02:59]}  d5 {[%clk 0:03:00]} 11. exd5 {[%clk 0:02:59]}  Nxd5 {[%clk 0:03:00]} 12. Nxd5 {[%clk 0:02:58]}  exd5 {[%clk 0:03:01]} 13. Bf2 {[%clk 0:02:57]}  Qg5 {[%clk 0:02:47]} 14. Kh1 {[%clk 0:02:53]}  Qh5 {[%clk 0:02:39]} 15. Nxc6 {[%clk 0:02:21]}  bxc6 {[%clk 0:02:38]} 16. Bd4 {[%clk 0:02:22]}  Ba6 {[%clk 0:02:10]} 17. Bxg7 {[%clk 0:02:00]}  Kxg7 {[%clk 0:01:32]} 18. Re1 {[%clk 0:01:54]}  Qh4 {[%clk 0:01:32]} 19. c3 {[%clk 0:01:48]}  Bc4 {[%clk 0:00:56]} 20. Bxc4 {[%clk 0:01:21]}  Qxc4 {[%clk 0:00:56]} 21. Qd4+ {[%clk 0:01:19]}  Qxd4 {[%clk 0:00:56]} 22. cxd4 {[%clk 0:01:20]}  Rab8 {[%clk 0:00:50]} 23. b3 {[%clk 0:01:19]}  Rxe1+ {[%clk 0:00:49]} 24. Rxe1 {[%clk 0:01:20]}  Rb4 {[%clk 0:00:50]} 25. Rd1 {[%clk 0:01:20]}  Kf6 {[%clk 0:00:50]} 26. Kg1 {[%clk 0:01:20]}  Ke6 {[%clk 0:00:50]} 27. Kf2 {[%clk 0:01:18]}  a5 {[%clk 0:00:51]} 28. Ke3 {[%clk 0:01:01]}  a4 {[%clk 0:00:51]} 29. Rb1 {[%clk 0:00:56]}  axb3 {[%clk 0:00:50]} 30. axb3 {[%clk 0:00:56]}  Kd6 {[%clk 0:00:47]} 31. Kd3 {[%clk 0:00:56]}  Rb8 {[%clk 0:00:39]} 32. b4 {[%clk 0:00:28]}  Ra8 {[%clk 0:00:34]} 33. b5 {[%clk 0:00:23]}  cxb5 {[%clk 0:00:06]} 34. Rxb5 {[%clk 0:00:24]}  Ra2 {[%clk 0:00:07]} 35. Rb6+ {[%clk 0:00:21]}  Ke7 {[%clk 0:00:06]} 36. g4 {[%clk 0:00:20]}  Rxh2 {[%clk 0:00:06]} 37. Rb5 {[%clk 0:00:21]}  Ke6 {[%clk 0:00:06]} 38. Rb6+ {[%clk 0:00:20]}  Ke7 {[%clk 0:00:07]} 39. Rb5 {[%clk 0:00:20]}  h5 {[%clk 0:00:08]} 40. Rxd5 {[%clk 0:00:17]}  hxg4 {[%clk 0:00:08]} 41. fxg4 {[%clk 0:00:17]}  Ke6 {[%clk 0:00:08]} 42. Re5+ {[%clk 0:00:16]}  Kd6 {[%clk 0:00:08]} 43. g5 {[%clk 0:00:16]}  Rg2 {[%clk 0:00:08]} 44. Ra5 {[%clk 0:00:15]}  Rg4 {[%clk 0:00:08]} 45. Ke3 {[%clk 0:00:15]}  Ke6 {[%clk 0:00:08]} 46. Re5+ {[%clk 0:00:15]}  Kd6 {[%clk 0:00:08]} 47. Rb5 {[%clk 0:00:16]}  Rg1 {[%clk 0:00:09]} 48. Ke4 {[%clk 0:00:15]}  Re1+ {[%clk 0:00:09]} 49. Kf4 {[%clk 0:00:16]}  Ke6 {[%clk 0:00:10]} 50. Ra5 {[%clk 0:00:11]}  Rf1+ {[%clk 0:00:08]} 51. Ke4 {[%clk 0:00:12]}  Re1+ {[%clk 0:00:08]} 52. Kf4 {[%clk 0:00:12]}  Rd1 {[%clk 0:00:09]} 53. Ke4 {[%clk 0:00:09]}  Kd6 {[%clk 0:00:09]} 54. Ra6+ {[%clk 0:00:09]}  Ke7 {[%clk 0:00:10]} 55. Ra5 {[%clk 0:00:07]}  Rg1 {[%clk 0:00:09]} 56. Kf4 {[%clk 0:00:08]}  Kd7 {[%clk 0:00:07]} 57. Rb5 {[%clk 0:00:07]}  Kc6 {[%clk 0:00:07]} 58. Re5 {[%clk 0:00:07]}  Kd6 {[%clk 0:00:07]} 59. Ra5 {[%clk 0:00:07]}  Re1 {[%clk 0:00:08]} 60. Rb5 {[%clk 0:00:05]}  Kc6 {[%clk 0:00:05]} 61. Rc5+ {[%clk 0:00:05]}  Kd7 {[%clk 0:00:06]} 62. Rd5+ {[%clk 0:00:05]}  Ke6 {[%clk 0:00:06]} 63. Ra5 {[%clk 0:00:05]} 1/2-1/2


[Site "https://www.chess.com"]

[Event "Titled Tuesday Blitz November 07 Early 2023"]
[White "Sychev, Klementy"]
[Black "Ovetchkin, Roman"]
[WhiteFideId "4114060"]
[BlackFideId "4119991"]
[WhiteElo "2840"]
[BlackElo "2682"]
[Result "1-0"]
[Round "5"]
[TimeControl "180+1"]
[Date "2023.11.07"]
[WhiteClock "0:00:05"]
[BlackClock "0:00:04"]
[Board "34"]

1. e4 {[%clk 0:02:58]}  c6 {[%clk 0:02:59]} 2. c4 {[%clk 0:02:57]}  d5 {[%clk 0:03:00]} 3. cxd5 {[%clk 0:02:58]}  cxd5 {[%clk 0:03:00]} 4. exd5 {[%clk 0:02:58]}  Nf6 {[%clk 0:03:01]} 5. Qa4+ {[%clk 0:02:58]}  Nbd7 {[%clk 0:02:59]} 6. Nc3 {[%clk 0:02:58]}  g6 {[%clk 0:02:59]} 7. Bc4 {[%clk 0:02:59]}  Bg7 {[%clk 0:02:59]} 8. d3 {[%clk 0:02:58]}  O-O {[%clk 0:03:00]} 9. Nf3 {[%clk 0:02:59]}  a6 {[%clk 0:02:59]} 10. Qa3 {[%clk 0:02:59]}  Rb8 {[%clk 0:02:35]} 11. Bf4 {[%clk 0:02:58]}  Ra8 {[%clk 0:02:34]} 12. O-O {[%clk 0:02:56]}  Nh5 {[%clk 0:02:18]} 13. Bg5 {[%clk 0:02:54]}  Bf6 {[%clk 0:02:07]} 14. Rfe1 {[%clk 0:02:51]}  Bxg5 {[%clk 0:02:04]} 15. Nxg5 {[%clk 0:02:52]}  Re8 {[%clk 0:02:04]} 16. Nce4 {[%clk 0:02:09]}  Ne5 {[%clk 0:01:51]} 17. Qc3 {[%clk 0:02:00]}  f6 {[%clk 0:01:25]} 18. d6+ {[%clk 0:01:47]}  Kg7 {[%clk 0:01:24]} 19. dxe7 {[%clk 0:00:38]}  Qxe7 {[%clk 0:01:23]} 20. Ng3 {[%clk 0:00:30]}  Nf4 {[%clk 0:00:22]} 21. d4 {[%clk 0:00:27]}  fxg5 {[%clk 0:00:21]} 22. Rxe5 {[%clk 0:00:23]}  Qf8 {[%clk 0:00:21]} 23. Rxe8 {[%clk 0:00:18]}  Qxe8 {[%clk 0:00:21]} 24. d5+ {[%clk 0:00:17]}  Kh6 {[%clk 0:00:21]} 25. Re1 {[%clk 0:00:17]}  Qf8 {[%clk 0:00:21]} 26. Ne4 {[%clk 0:00:12]}  Bf5 {[%clk 0:00:19]} 27. Nf6 {[%clk 0:00:11]}  Rc8 {[%clk 0:00:15]} 28. d6 {[%clk 0:00:07]}  Qxd6 {[%clk 0:00:13]} 29. Ng8+ {[%clk 0:00:06]}  Kh5 {[%clk 0:00:05]} 30. h3 {[%clk 0:00:06]}  Qc6 {[%clk 0:00:04]} 31. g4+ {[%clk 0:00:06]}  Kh4 {[%clk 0:00:04]} 32. Qg3# {[%clk 0:00:05]} 1-0


[Site "https://www.chess.com"]